bitfinex-derivatives/quotes_SOLF0:USTF0_20250720
["timestamp","ask_amount","ask_price","bid_price","bid_amount"]
[1753043373192,3.19,181.42,181.37,3.02]
[1753043373392,3.19,181.41,181.37,3.02]
[1753043373795,3.19,181.41,181.39,3.02]
[1753043374194,3.19,181.42,181.4,5.5099]
[1753043374496,3.19,181.42,181.41,3.02]
[1753043374892,3.19,181.42,181.36,2.68482077]
[1753043374893,3.19,181.42,181.39,8.5304]
[1753043375096,3.19,181.42,181.4,3.02]
[1753043375702,3.19,181.4,181.37,3.02]
[1753043376402,3.19,181.4,181.38,3.02]
[1753043377097,3.19,181.4,181.38,8.5308]
[1753043377903,3.19,181.4,181.38,3.02]
[1753043378305,3.19,181.39,181.38,3.02]
[1753043379304,3.19,181.39,181.36,5.5113]
[1753043379508,3.19,181.39,181.37,3.02]
[1753043380415,3.19,181.39,181.37,8.531]
[1753043380805,3.19,181.38,181.36,3.02]
[1753043382312,3.19,181.38,181.35,3.02]
[1753043382809,3.19,181.37,181.36,3.02]
[1753043383905,3.19,181.37,181.36,8.5314]
[1753043385612,3.19,181.37,181.36,3.02]
[1753043385912,3.19,181.38,181.36,3.02]
[1753043386913,3.19,181.37,181.36,3.02]
[1753043388016,3.19,181.39,181.36,3.02]
[1753043388218,3.19,181.38,181.36,3.02]
[1753043388419,3.19,181.37,181.36,3.02]
[1753043390415,3.19,181.38,181.36,5.5114]
[1753043390614,3.19,181.38,181.37,3.02]
[1753043390818,3.19,181.39,181.37,3.02]
[1753043391013,3.19,181.39,181.38,3.02]
[1753043391217,3.19,181.42,181.39,3.02]
[1753043391421,5.5101,181.41,181.39,3.02]
[1753043391721,3.19,181.4,181.39,3.02]
[1753043395730,3.19,181.4,181.34,3.02]
[1753043395927,2.68482077,181.36,181.3,3.02]
[1753043396129,3.19,181.33,181.28,3.02]
[1753043396332,3.19,181.3,181.26,3.02]
[1753043397033,3.19,181.29,181.24,2.68482077]
[1753043397229,3.19,181.29,181.27,3.02]
[1753043397727,2.68482077,181.35,181.23,3.02]
[1753043397728,3.19,181.27,181.23,3.02]
[1753043398128,3.1,181.26,181.25,5.5147]
[1753043398325,3.1,181.28,181.25,8.4947]
[1753043398525,5.5136,181.29,181.25,5.5147]
[1753043398728,3.1,181.27,181.25,5.5147]
[1753043399127,8.19812077,181.3,181.26,2.98]
[1753043399128,3.1,181.29,181.26,2.98]
[1753043399330,3.1,181.28,181.26,8.4944]
[1753043399635,3.1,181.29,181.27,2.98]
[1753043400337,3.1,181.28,181.25,5.5146]
[1753043400539,3.1,181.28,181.22,2.68482077]
[1753043400938,3.1,181.27,181.25,2.98]
[1753043401139,3.1,181.26,181.24,5.5149]
[1753043401537,3.1,181.26,181.25,5.5147]
[1753043401737,3.1,181.28,181.26,2.98]
[1753043402241,3.1,181.27,181.26,2.98]
[1753043407939,3.1,181.28,181.26,2.98]
[1753043408140,3.1,181.27,181.26,2.98]
[1753043408341,3.1,181.27,181.21,2.98]
[1753043408545,3.1,181.22,181.21,2.98]
[1753043409042,3.1,181.21,181.19,2.98]
[1753043409243,3.1,181.2,181.18,101.54]
[1753043409637,3.1,181.2,181.16,101.54]
[1753043409940,3.1,181.2,181.17,2.98]
[1753043410140,3.1,181.19,181.17,2.98]
[1753043410542,3.1,181.19,181.18,2.98]
[1753043411343,8.20062077,181.22,181.18,2.98]
[1753043411344,5.5158,181.22,181.18,2.98]
[1753043411544,3.1,181.2,181.18,2.98]
[1753043412446,3.1,181.22,181.19,8.4966]
[1753043412740,3.1,181.21,181.2,2.98]
[1753043414439,3.1,181.21,181.16,101.54]
[1753043414640,2.68482077,181.21,181.17,2.98]
[1753043414841,5.5166,181.19,181.17,2.98]
[1753043415036,3.1,181.18,181.17,2.98]
[1753043415942,3.1,181.17,181.16,2.98]
[1753043418446,3.1,181.16,181.11,2.98]
[1753043418646,3.1,181.16,181.1,373.32482077]
[1753043418647,3.1,181.16,181.12,101.56]
[1753043418846,3.1,181.16,181.14,2.98]
[1753043419046,3.1,181.18,181.13,2.98]
[1753043419443,8.617,181.18,181.14,5.5178]
[1753043419645,3.1,181.17,181.15,2.98]
[1753043419947,3.1,181.17,181.15,8.4978]
[1753043420148,3.1,181.17,181.16,2.98]
[1753043420546,3.1,181.17,181.16,8.4975]
[1753043420849,2.68482077,181.2,181.16,5.5175]
[1753043421045,3.1,181.19,181.17,2.98]
[1753043421245,3.1,181.18,181.17,5.5171]
[1753043421545,3.1,181.21,181.16,2.68482077]
[1753043421744,3.1,181.23,181.21,2.98]
[1753043422149,3.1,181.23,181.19,2.98]
[1753043422344,5.5159,181.22,181.19,2.98]
[1753043422551,3.1,181.21,181.19,2.98]
[1753043422748,5.5159,181.22,181.19,2.98]
[1753043422950,3.1,181.2,181.19,8.4965]
[1753043424752,3.1,181.23,181.22,2.98]
[1753043425356,8.6153,181.23,181.22,2.98]
[1753043426351,3.1,181.23,181.22,2.98]
[1753043427149,8.6153,181.23,181.22,2.98]
[1753043428658,5.5153,181.23,181.19,3.06]
[1753043428959,5.5153,181.23,181.18,101.56]
[1753043428960,3.18,181.21,181.2,8.5761]
[1753043429458,3.18,181.21,181.2,3.06]
[1753043429956,2.68482077,181.27,181.2,3.06]
[1753043430151,5.5149,181.25,181.19,2.68482077]
[1753043430356,3.18,181.26,181.19,2.68482077]
[1753043430550,5.5152,181.24,181.21,5.5158]
[1753043430748,3.18,181.23,181.21,8.5758]
[1753043431352,3.18,181.22,181.21,5.5158]
[1753043431854,3.18,181.22,181.21,8.5758]
[1753043433359,3.18,181.22,181.21,3.06]
[1753043433760,3.18,181.22,181.21,8.576]
[1753043434448,5.5152,181.24,181.22,3.06]
[1753043434648,8.6952,181.24,181.22,3.06]
[1753043434857,3.18,181.23,181.21,5.516]
[1753043435258,3.18,181.23,181.22,3.06]
[1753043438157,8.6953,181.23,181.22,3.06]
[1753043438859,3.18,181.23,181.22,3.06]
[1753043439967,3.18,181.25,181.22,3.06]
[1753043440168,3.18,181.24,181.22,3.06]
[1753043440460,3.18,181.28,181.22,3.06]
[1753043440666,3.18,181.27,181.22,3.06]
[1753043440866,5.5139,181.28,181.22,3.06]
[1753043441063,3.18,181.26,181.22,3.06]
[1753043441267,3.18,181.28,181.25,3.06]
[1753043441468,3.18,181.27,181.25,3.06]
[1753043442362,5.5136,181.29,181.25,3.06]
[1753043442759,3.18,181.28,181.26,5.5144]
[1753043443058,3.18,181.28,181.27,3.06]
[1753043444873,8.6938,181.28,181.27,3.06]
[1753043445073,3.18,181.3,181.24,3.06]
[1753043445572,8.6934,181.3,181.26,5.5142]
[1753043445771,3.18,181.29,181.27,3.06]
[1753043446870,3.18,181.31,181.28,3.06]
[1753043447374,3.18,181.28,181.26,3.06]
[1753043448871,3.18,181.28,181.27,3.06]
[1753043452883,3.18,181.28,181.27,8.5741]
[1753043453085,3.18,181.28,181.27,3.06]
[1753043453383,5.5131,181.31,181.27,8.5741]
[1753043453577,3.18,181.29,181.28,3.06]
[1753043454678,3.18,181.29,181.28,8.5738]
[1753043456985,3.18,181.29,181.28,3.06]
[1753043457183,3.18,181.29,181.26,3.06]
[1753043457582,3.18,181.28,181.27,8.5741]
[1753043458186,3.17,181.32,181.28,5.5136]
[1753043458387,3.17,181.32,181.3,3.21]
[1753043460381,3.17,181.32,181.25,3.21]
[1753043460582,3.17,181.28,181.23,3.21]
[1753043460783,2.68482077,181.27,181.22,3.21]
[1753043461078,3.17,181.22,181.17,3.21]
[1753043461280,3.17,181.2,181.17,3.21]
[1753043461477,3.17,181.18,181.12,3.21]
[1753043462892,3.17,181.18,181.14,8.728]
[1753043463585,3.17,181.18,181.15,5.5178]
[1753043463787,3.17,181.18,181.15,8.7278]
[1753043465194,3.17,181.18,181.15,3.21]
[1753043465381,2.68482077,181.19,181.11,101.42]
[1753043465587,3.17,181.15,181.11,101.42]
[1753043465887,2.68482077,181.19,181.11,101.42]
[1753043466092,2.68482077,181.19,181.14,3.21]
[1753043466093,3.17,181.16,181.14,3.21]
[1753043466586,3.17,181.2,181.14,3.21]
[1753043466784,3.17,181.2,181.15,2.68482077]
[1753043467090,2.68482077,181.23,181.16,3.21]
[1753043467281,3.17,181.22,181.16,3.21]
[1753043467485,3.17,181.24,181.18,3.21]
[1753043467686,6.84647869,181.23,181.18,3.21]
[1753043467986,3.17,181.23,181.18,3.21]
[1753043469191,8.19982077,181.25,181.18,3.21]
[1753043469388,3.17,181.22,181.18,3.21]
[1753043469588,3.17,181.22,181.21,3.21]
[1753043470393,8.19982077,181.25,181.21,3.21]
[1753043470692,3.17,181.23,181.22,3.21]
[1753043470892,7.00836069,181.23,181.22,3.21]
[1753043471096,7.00836069,181.23,181.22,8.7256]
[1753043471294,3.17,181.23,181.22,3.21]
[1753043472389,3.17,181.23,181.18,3.21]
[1753043472594,3.17,181.23,181.16,3.21]
[1753043473095,3.17,181.22,181.19,3.21]
[1753043473695,3.17,181.22,181.2,3.21]
[1753043473895,3.17,181.21,181.2,3.21]
[1753043475696,3.17,181.21,181.2,8.7263]
[1753043475896,3.17,181.26,181.2,3.21]
[1753043476196,3.17,181.26,181.22,5.5154]
[1753043476496,3.17,181.26,181.23,3.21]
[1753043477200,3.17,181.25,181.23,3.21]
[1753043477897,3.17,181.25,181.23,8.7253]
[1753043478299,3.17,181.25,181.23,5.5153]
[1753043478501,3.17,181.24,181.17,2.68482077]
[1753043478795,3.17,181.24,181.2,3.21]
[1753043479001,3.17,181.24,181.21,8.7257]
[1753043479896,3.17,181.24,181.22,8.7256]
[1753043482299,3.17,181.24,181.23,8.7253]
[1753043485705,3.17,181.24,181.23,3.21]
[1753043490406,8.685,181.24,181.22,5.5155]
[1753043490608,3.23,181.23,181.22,8.6555]
[1753043490902,8.7456,181.23,181.18,3.14]
[1753043491207,3.23,181.22,181.18,3.14]
[1753043491403,3.23,181.24,181.21,5.516]
[1753043491601,3.23,181.24,181.21,8.656]
[1753043492510,3.23,181.23,181.22,3.14]
[1753043493208,3.23,181.23,181.22,8.6556]
[1753043494405,3.23,181.25,181.24,8.655]
[1753043494605,3.23,181.25,181.24,3.14]
[1753043499517,3.23,181.25,181.24,8.655]
[1753043499719,3.23,181.26,181.24,3.14]
[1753043499908,2.68482077,181.31,181.26,5.5143]
[1753043500112,3.23,181.28,181.23,2.68482077]
[1753043500425,3.23,181.31,181.23,2.68482077]
[1753043500616,8.743,181.31,181.28,5.5136]
[1753043500809,3.23,181.3,181.29,3.14]
[1753043501206,8.7432,181.3,181.29,3.14]
[1753043501819,3.23,181.29,181.28,3.14]
[1753043502321,2.68482077,181.29,181.18,4.62549274]
[1753043502521,83.43484187,181.32,181.18,4.62549274]
[1753043502522,2.68482077,181.27,181.18,2.68482077]
[1753043502724,3.23,181.25,181.23,5.5152]
[1753043503020,3.23,181.25,181.24,3.14]
[1753043503822,3.23,181.25,181.24,8.655]
[1753043504522,8.7442,181.27,181.25,3.14]
[1753043504718,3.23,181.26,181.24,5.515]
[1753043505316,8.7444,181.26,181.25,3.14]
[1753043507021,3.23,181.26,181.25,3.14]
[1753043507824,3.23,181.26,181.25,8.6547]
[1753043509526,3.23,181.26,181.25,3.14]
[1753043509824,8.7444,181.26,181.25,3.14]
[1753043510024,3.23,181.26,181.22,8.6555]
[1753043510224,3.23,181.24,181.22,8.6555]
[1753043510822,3.23,181.23,181.22,8.6555]
[1753043511426,3.23,181.24,181.23,5.5153]
[1753043512128,3.23,181.24,181.23,8.6553]
[1753043513323,5.5145,181.26,181.23,8.6553]
[1753043513528,3.23,181.25,181.24,3.14]
[1753043513726,3.23,181.25,181.24,8.655]
[1753043513926,3.23,181.3,181.25,3.14]
[1753043514128,86.11966264,181.32,181.25,3.14]
[1753043514332,3.23,181.29,181.28,5.5138]
[1753043514528,3.23,181.29,181.28,8.6538]
[1753043515027,88.94754187,181.32,181.29,5.5135]
[1753043515222,3.23,181.31,181.3,3.14]
[1753043517425,83.43484187,181.32,181.3,5.5132]
[1753043517629,3.23,181.33,181.29,3.14]
[1753043518027,3.23,181.33,181.32,3.18]
[1753043522435,3.23,181.33,181.28,3.18]
[1753043522630,2.68482077,181.3,181.24,3.18]
[1753043522828,5.514,181.28,181.24,3.18]
[1753043523033,3.12,181.27,181.24,3.18]
[1753043523936,3.12,181.27,181.26,3.18]
[1753043524138,3.12,181.27,181.25,5.5145]
[1753043524334,3.12,181.27,181.25,8.6945]
[1753043524734,3.12,181.26,181.25,3.18]
[1753043525339,3.12,181.28,181.25,8.6947]
[1753043525533,3.12,181.27,181.26,3.18]
[1753043526230,3.12,181.27,181.26,8.6944]
[1753043526429,3.12,181.29,181.26,3.18]
[1753043526832,3.12,181.29,181.28,5.5138]
[1753043527031,2.68482077,181.32,181.28,8.6938]
[1753043527228,3.12,181.38,181.28,3.18]
[1753043527432,3.12,181.36,181.32,3.18]
[1753043527635,5.5118,181.35,181.32,3.18]
[1753043527834,3.12,181.34,181.32,3.18]
[1753043528037,3.12,181.33,181.32,8.6926]
[1753043528234,3.12,181.33,181.32,3.18]
[1753043529840,8.6323,181.33,181.32,3.18]
[1753043530241,3.12,181.32,181.24,2.68482077]
[1753043530540,3.12,181.28,181.25,3.18]
[1753043530737,3.12,181.3,181.23,2.68482077]
[1753043530941,3.12,181.3,181.24,3.18]
[1753043531141,8.6333,181.3,181.24,3.18]
[1753043531544,8.6333,181.3,181.28,3.18]
[1753043531839,8.6333,181.3,181.29,3.18]
[1753043532435,3.12,181.33,181.3,3.18]
[1753043532845,5.5131,181.31,181.3,3.18]
[1753043533045,8.6331,181.31,181.3,3.18]
[1753043533432,8.6332,181.3,181.29,3.18]
[1753043533639,3.12,181.29,181.27,8.6941]
[1753043534041,3.12,181.28,181.27,8.6941]
[1753043535632,5.5135,181.29,181.27,5.5141]
[1753043535633,3.12,181.29,181.27,5.5141]
[1753043535834,3.12,181.31,181.28,8.6938]
[1753043536045,3.12,181.3,181.29,3.18]
[1753043537845,8.6332,181.3,181.29,3.18]
[1753043539649,3.12,181.28,181.23,2.68482077]
[1753043539856,3.12,181.28,181.25,3.18]
[1753043540355,3.12,181.27,181.26,3.18]
[1753043540854,3.12,181.27,181.26,8.6944]
[1753043541549,2.68482077,181.35,181.26,8.6944]
[1753043541754,3.12,181.32,181.28,3.18]
[1753043541957,3.12,181.31,181.28,3.18]
[1753043542356,3.12,181.3,181.28,3.18]
[1753043542958,3.12,181.3,181.29,5.5135]
[1753043543160,3.12,181.3,181.29,8.6935]
[1753043544159,8.6327,181.32,181.3,3.18]
[1753043544560,3.12,181.32,181.3,8.693]
[1753043544757,3.12,181.32,181.31,3.18]
[1753043545161,8.6326,181.32,181.31,3.18]
[1753043545862,3.12,181.32,181.31,3.18]
[1753043546259,3.12,181.32,181.31,8.6929]
[1753043546458,5.5124,181.33,181.31,5.5129]
[1753043546759,5.5124,181.33,181.32,3.18]
[1753043546760,8.6324,181.33,181.32,3.18]
[1753043550360,2.68482077,181.38,181.32,3.18]
[1753043550560,3.13,181.37,181.32,3.18]
[1753043551861,5.5116,181.36,181.33,5.5121]
[1753043552067,3.13,181.35,181.34,3.1]
[1753043552568,8.6416,181.36,181.34,3.1]
[1753043553460,3.13,181.35,181.33,5.5122]
[1753043553960,3.13,181.35,181.34,3.1]
[1753043556270,3.13,181.35,181.34,8.612]
[1753043556463,3.13,181.36,181.35,3.1]
[1753043556664,3.13,181.41,181.35,3.1]
[1753043556867,5.5103,181.4,181.37,5.5111]
[1753043557058,3.13,181.39,181.38,3.1]
[1753043557264,2.68482077,181.42,181.38,8.6105]
[1753043557265,5.5098,181.42,181.38,8.6105]
[1753043557464,5.5098,181.42,181.35,2.68482077]
[1753043557465,3.13,181.41,181.39,3.1]
[1753043558164,3.13,181.41,181.34,2.68482077]
[1753043558370,3.13,181.41,181.35,3.1]
[1753043559276,3.13,181.41,181.39,3.1]
[1753043559676,2.68482077,181.45,181.39,3.1]
[1753043559971,3.13,181.43,181.41,3.1]
[1753043560172,5.5092,181.44,181.41,3.1]
[1753043560370,3.13,181.43,181.42,3.1]
[1753043560866,8.6393,181.43,181.4,3.1]
[1753043561072,5.5093,181.43,181.38,2.68482077]
[1753043561270,3.13,181.44,181.36,2.68482077]
[1753043561468,3.13,181.41,181.38,5.5106]
[1753043561675,5.5098,181.42,181.38,5.5106]
[1753043561676,3.13,181.4,181.39,3.1]
[1753043562071,5.5094,181.43,181.39,5.5105]
[1753043562273,3.13,181.42,181.4,3.1]
[1753043563469,3.13,181.42,181.41,5.5099]
[1753043563674,3.13,181.42,181.41,8.6099]
[1753043563972,3.13,181.42,181.41,3.1]
[1753043564872,3.13,181.42,181.41,8.6099]
[1753043566672,3.13,181.42,181.41,3.1]
[1753043566977,5.81482077,181.42,181.32,3.1]
[1753043567172,3.13,181.41,181.34,3.1]
[1753043567368,3.13,181.39,181.37,3.1]
[1753043567574,3.13,181.38,181.33,3.1]
[1753043567774,3.13,181.38,181.37,5.5109]
[1753043567974,3.13,181.38,181.37,8.6109]
[1753043568277,3.13,181.43,181.37,3.1]
[1753043568877,3.13,181.42,181.37,3.1]
[1753043569076,3.13,181.41,181.37,3.1]
[1753043570169,3.13,181.43,181.4,3.1]
[1753043570674,3.13,181.47,181.41,3.1]
[1753043570875,3.13,181.47,181.43,3.1]
[1753043571177,3.13,181.47,181.42,2.68482077]
[1753043571178,5.5073,181.5,181.44,2.68482077]
[1753043571478,3.13,181.48,181.45,3.1]
[1753043571675,3.13,181.48,181.46,5.5084]
[1753043571984,3.13,181.47,181.46,5.5084]
[1753043572272,5.5073,181.5,181.47,3.1]
[1753043572478,3.13,181.48,181.47,3.1]
[1753043572671,3.13,181.48,181.46,5.5084]
[1753043572872,3.13,181.48,181.46,8.6084]
[1753043573079,3.13,181.48,181.46,5.5084]
[1753043573677,3.13,181.48,181.46,8.6084]
[1753043573877,3.13,181.47,181.46,8.6084]
[1753043574579,3.13,181.49,181.47,8.608]
[1753043574775,132.12399159,181.56,181.47,3.1]
[1753043574776,2.68482077,181.54,181.47,3.1]
[1753043574980,3.13,181.53,181.47,3.1]
[1753043575575,5.5067,181.52,181.49,5.5074]
[1753043575878,3.13,181.5,181.49,3.1]
[1753043576677,3.13,181.5,181.49,8.6074]
[1753043581373,3.16,181.49,181.44,3.23]
[1753043581574,2.68482077,181.47,181.41,3.23]
[1753043581785,3.16,181.46,181.41,3.23]
[1753043581985,8.6685,181.46,181.42,5.5094]
[1753043582284,3.16,181.45,181.42,3.23]
[1753043582683,3.16,181.45,181.39,3.23]
[1753043583082,3.16,181.45,181.42,5.5094]
[1753043583274,5.5087,181.45,181.42,8.7394]
[1753043583477,3.16,181.44,181.4,3.23]
[1753043583979,3.16,181.44,181.41,8.7397]
[1753043584380,3.16,181.44,181.42,3.23]
[1753043584780,3.16,181.44,181.42,8.7395]
[1753043585280,3.16,181.43,181.42,8.7395]
[1753043585483,3.16,181.44,181.43,3.23]
[1753043585880,8.6684,181.46,181.43,3.23]
[1753043586079,3.16,181.45,181.44,3.23]
[1753043587183,3.16,181.45,181.44,8.739]
[1753043589586,3.16,181.45,181.43,5.5092]
[1753043589792,3.16,181.44,181.43,3.23]
[1753043590590,3.16,181.44,181.43,8.7393]
[1753043591588,3.16,181.44,181.41,3.23]
[1753043591985,3.16,181.44,181.42,3.23]
[1753043592488,3.16,181.43,181.42,3.23]
[1753043595191,3.16,181.43,181.36,3.23]
[1753043595391,3.16,181.43,181.37,2.68482077]
[1753043595693,2.68482077,181.47,181.38,3.23]
[1753043595892,3.16,181.42,181.38,3.23]
[1753043596093,3.16,181.42,181.4,5.51]
[1753043596296,3.16,181.42,181.41,3.23]
[1753043599185,3.16,181.42,181.4,3.23]
[1753043600291,3.16,181.42,181.4,8.7401]
[1753043600487,3.16,181.41,181.4,8.7401]
[1753043603501,3.16,181.41,181.4,3.23]
[1753043604803,3.16,181.41,181.4,8.7402]
[1753043606712,3.16,181.41,181.4,3.23]
[1753043610409,6.11870017,181.5,181.41,5.5099]
[1753043610610,3.1,181.43,181.42,2.96]
[1753043611309,3.1,181.43,181.42,8.4696]
[1753043611504,3.1,181.45,181.43,2.96]
[1753043611709,3.1,181.44,181.43,2.96]
[1753043612306,3.1,181.44,181.41,5.5098]
[1753043612511,3.1,181.44,181.42,2.96]
[1753043613512,3.1,181.43,181.42,8.4696]
[1753043615915,3.1,181.43,181.42,2.96]
[1753043616217,3.1,181.45,181.42,2.96]
[1753043616510,3.1,181.46,181.42,5.5095]
[1753043616722,5.5086,181.46,181.42,5.5095]
[1753043616911,3.1,181.45,181.44,2.96]
[1753043620113,8.6088,181.45,181.43,2.96]
[1753043620313,3.1,181.44,181.43,2.96]
[1753043620920,3.1,181.44,181.43,5.5093]
[1753043621119,3.1,181.44,181.43,8.4693]
[1753043622121,3.1,181.45,181.44,8.469]
[1753043622417,3.1,181.47,181.45,2.96]
[1753043623519,3.1,181.51,181.46,2.96]
[1753043623823,3.1,181.48,181.47,2.96]
[1753043626223,8.6078,181.48,181.47,2.96]
[1753043626624,8.6078,181.48,181.46,2.96]
[1753043626823,3.1,181.47,181.46,2.96]
[1753043628619,5.5067,181.52,181.46,5.5084]
[1753043628925,3.1,181.53,181.47,5.64482077]
[1753043629126,3.1,181.53,181.48,2.96]
[1753043629327,84.71110244,181.55,181.47,2.68482077]
[1753043629328,5.5067,181.52,181.49,5.5075]
[1753043629527,3.1,181.51,181.5,2.96]
[1753043629927,87.39592321,181.55,181.43,4.60230745]
[1753043630128,3.1,181.54,181.51,2.96]
[1753043630324,5.5063,181.53,181.51,2.96]
[1753043630529,3.1,181.57,181.51,2.96]
[1753043631842,3.1,181.54,181.53,2.96]
[1753043632543,3.1,181.54,181.44,8.85377071]
[1753043632544,5.78482077,181.6,181.51,2.68482077]
[1753043632735,3.1,181.59,181.52,2.96]
[1753043633137,3.1,181.59,181.52,8.4663]
[1753043633343,3.1,181.59,181.53,2.96]
[1753043634346,3.1,181.55,181.54,2.96]
[1753043635542,8.6056,181.55,181.54,2.96]
[1753043635741,3.1,181.55,181.54,2.96]
[1753043637451,8.6074,181.5,181.49,2.96]
[1753043637647,3.1,181.5,181.47,2.96]
[1753043638040,3.22,181.49,181.47,3.23]
[1753043638242,2.68482077,181.57,181.49,3.23]
[1753043638449,3.22,181.56,181.49,3.23]
[1753043638648,8.7266,181.52,181.5,3.23]
[1753043638844,3.22,181.51,181.48,2.68482077]
[1753043639046,3.22,181.51,181.46,2.68482077]
[1753043639352,3.22,181.5,181.49,3.23]
[1753043639849,8.7266,181.52,181.49,3.23]
[1753043640052,3.22,181.51,181.49,3.23]
[1753043640551,3.22,181.51,181.5,3.23]
[1753043640850,8.7269,181.51,181.5,3.23]
[1753043641049,3.22,181.51,181.5,3.23]
[1753043641450,2.68482077,181.55,181.5,3.23]
[1753043641642,3.22,181.53,181.5,3.23]
[1753043641847,3.22,181.53,181.5,8.7372]
[1753043642151,3.22,181.52,181.51,3.23]
[1753043643451,3.22,181.52,181.46,2.68482077]
[1753043643452,3.22,181.52,181.49,8.7374]
[1753043643649,3.22,181.52,181.5,3.23]
[1753043643851,3.22,181.52,181.47,3.23]
[1753043644050,11.0083,181.61,181.47,3.23]
[1753043644051,3.22,181.49,181.47,3.23]
[1753043644548,3.22,181.48,181.45,8.7386]
[1753043644750,3.22,181.48,181.46,3.23]
[1753043645453,3.22,181.47,181.46,3.23]
[1753043645950,3.22,181.47,181.46,8.7384]
[1753043646953,3.22,181.5,181.47,3.23]
[1753043647148,2.68482077,181.54,181.47,3.23]
[1753043647353,17.12700017,181.61,181.46,2.68482077]
[1753043647551,5.5071,181.51,181.47,5.5079]
[1753043647758,3.22,181.49,181.47,5.5079]
[1753043648055,3.22,181.49,181.48,3.23]
[1753043649956,3.22,181.49,181.48,8.7378]
[1753043650651,3.22,181.49,181.48,3.23]
[1753043651156,5.5067,181.52,181.48,8.7378]
[1753043651353,3.22,181.52,181.47,2.68482077]
[1753043651556,3.22,181.54,181.5,3.23]
[1753043651756,3.22,181.54,181.53,3.23]
[1753043653761,8.726,181.54,181.53,3.23]
[1753043653959,3.22,181.54,181.53,3.23]
[1753043654857,3.22,181.55,181.53,3.23]
[1753043655250,3.22,181.57,181.54,3.23]
[1753043655455,3.22,181.55,181.54,3.23]
[1753043656959,101.68,181.64,181.55,3.23]
[1753043657261,3.22,181.56,181.55,3.23]
[1753043658252,3.22,181.56,181.55,5.5056]
[1753043658458,3.22,181.58,181.55,3.23]
[1753043659157,3.22,181.57,181.55,3.23]
[1753043660562,3.22,181.61,181.55,3.23]
[1753043660759,5.5043,181.6,181.56,5.5053]
[1753043661361,3.22,181.58,181.56,5.5053]